[Event "2nd Cambridge Open 2024"]
[Site "Cambridge"]
[Date "2024.02.24"]
[Round "8.8"]
[White "Hanache, Kai"]
[Black "Wachinger, Nikolas"]
[Result "0-1"]
[ECO "B92"]
[WhiteElo "1926"]
[BlackElo "2437"]
[Annotator "TA"]
[PlyCount "70"]
[EventDate "2024.02.18"]
[EventType "swiss"]
[EventCountry "ENG"]
[SourceTitle "playchess.com"]
[Source "ChessBase"]
[SourceQuality "1"]
[TimeControl "5400+30"]

{[%evp 18,70,0,7,10,19,23,20,14,23,15,14,25,21,31,27,31,24,20,0,0,0,14,0,52,-4,0,-52,0,-64,-66,-172,-170,-518,-498,-509,-515,-572,-564,-587,-598,-593,-594,-773,-773,-716,-704,-703,-703,-676,-694,-695,-677,-6395,-5837]} 1. e4 {[%emt 0:00:03]} c5 {[%emt 0:00:23]} 2. Nf3 {[%emt 0:00:11]} d6 {[%emt 0:00:06]} 3. d4 {[%emt 0:00:20]} cxd4 {[%emt 0:00:08]} 4. Nxd4 {[%emt 0:00:05]} Nf6 {[%emt 0:00:07]} 5. Nc3 {[%emt 0:00:17]} a6 {[%emt 0:00:07]} 6. Be2 {[%emt 0:00:18]} e5 {[%emt 0:01:03]} 7. Nb3 {[%emt 0:00:09]} Be7 {[%emt 0:00:40]} 8. O-O {[%emt 0:00:23]} O-O {[%emt 0:00:45]} 9. Be3 {[%emt 0:00:24]} Be6 {[%emt 0:01:29]} 10. Qd3 {[%emt 0:00:18]} Nc6 {[%emt 0:03:54]} 11. a3 {[%emt 0:00:47]} Na5 {[%emt 0:01:30]} 12. Nxa5 {[%emt 0:09:34]} Qxa5 {[%emt 0:00:05] The position is equal.} 13. b4 {[%emt 0:01:53]} Qc7 {[%emt 0:22:05]} 14. Nd5 {[%emt 0:02:49]} Bxd5 {[%emt 0:00:50]} 15. exd5 {[%emt 0:00:12]} Nd7 {[%emt 0:00:08]} 16. c4 {[%emt 0:03:19][%cal Oc4c5]} f5 {[%emt 0:01:13]} 17. Rac1 {[%emt 0:00:40][%cal Oc4c5]} b6 {[%emt 0:05:37]} 18. f4 {[%emt 0:07:21]} exf4 {[%emt 0:05:36]} 19. Bxf4 {[%emt 0:01:00]} Bf6 {[%emt 0:12:20]} 20. Kh1 {[%emt 0:06:31]} (20. Qxf5 $2 Bd4+ 21. Kh1 Rxf5 $19) 20... Rae8 {[%emt 0:02:33]} (20... g6 $11) 21. Bh5 {[%emt 0:07:03]} ({White should play} 21. c5 $1 $14 bxc5 22. Qxa6) 21... Re4 $11 {[%emt 0:05:10]} 22. Bg3 {[%emt 0:03:57]} (22. c5 $11 bxc5 23. Qxa6 Rxf4 (23... Be5 24. Bxe5 Rxe5 25. Bd1 $14) 24. Rxf4) 22... Be5 {[%emt 0:03:04]} (22... Ne5 $15 23. Qb1 g6 (23... Rxc4 24. Be2 $15)) 23. c5 {[%emt 0:15:33]} bxc5 $15 {[%emt 0:03:55]} 24. bxc5 {[%emt 0:01:20]} ({Better is} 24. Qxa6 $15 Bxg3 25. hxg3) 24... Nxc5 $19 {[%emt 0:01:34]} 25. Qf3 $2 {[%emt 0:02:12] [#]} (25. Bf3 Nxd3 26. Rxc7) 25... g6 {[%emt 0:02:02] Black is clearly winning.} 26. Bxe5 {[%emt 0:00:08]} Rxe5 {[%emt 0:00:29]} ({Less strong is} 26... dxe5 27. Qc3 Rc8 28. Rfd1 $17) 27. Bg4 {[%emt 0:00:18]} Qe7 {[%emt 0:01:53]} (27... fxg4 28. Qxf8#) 28. Bh3 {[%emt 0:00:49]} Re3 {[%emt 0:00:13]} 29. Qd1 {[%emt 0:00:59]} Nd3 {[%emt 0:01:45] Inhibits g3.} 30. Rb1 {[%emt 0:00:47]} Qe4 {[%emt 0:01:14][%csl LRd5,LRh3]} 31. Rb7 {[%emt 0:01:21]} Rxh3 {[%emt 0:04:14]} 32. Qa1 {[%emt 0:00:16]} Ne5 $1 {[%emt 0:00:30]} ({Stronger than} 32... Qxd5 33. Qg7#) 33. Rb4 {[%emt 0:00:18]} Qxd5 {[%emt 0:00:10] Hoping for ...Ng4.} 34. Rd4 {[%emt 0:00:09]} Qb7 {[%emt 0:01:42] Threatens to win with ...Ng4.} 35. Rb1 {[%emt 0:01:11] [#]} Rxa3 $3 {[%emt 0:00:18] Weighted Error Value: White=0.65/Black=0.07 (flawless) .  Mistake:       	White=5     	Black=2      Inaccurate:     	White=1     	---        OK:         	White=7     	Black=8      Best:        	---       	Black=4} 0-1

[Event "2nd Cambridge Open 2024"]
[Site "Cambridge"]
[Date "2024.02.24"]
[Round "8.9"]
[White "Vardanyan, Aras"]
[Black "Hanley, Craig A"]
[Result "1/2-1/2"]
[ECO "A25"]
[WhiteElo "2284"]
[BlackElo "2431"]
[Annotator "RC"]
[PlyCount "120"]
[EventDate "2024.02.18"]
[EventType "swiss"]
[EventCountry "ENG"]
[SourceTitle "playchess.com"]
[Source "ChessBase"]
[SourceQuality "1"]
[TimeControl "5400+30"]

1. c4 {[%emt 0:00:03]} e5 {[%emt 0:01:29]} 2. g3 {[%emt 0:00:07]} g6 {[%emt 0:01:05]} 3. Bg2 {[%emt 0:02:32]} Bg7 {[%emt 0:00:13]} 4. Nc3 {[%emt 0:00:07]} d6 {[%emt 0:00:46]} 5. d3 {[%emt 0:01:16]} Nc6 {[%emt 0:01:38]} 6. e3 {[%emt 0:00:12]} Be6 {[%emt 0:00:54]} 7. Nf3 {[%emt 0:01:31]} h6 {[%emt 0:02:17]} 8. d4 {[%emt 0:07:10]} exd4 {[%emt 0:15:23]} 9. Nxd4 {[%emt 0:05:45]} Nxd4 {[%emt 0:12:04]} 10. exd4 {[%emt 0:00:11]} Qd7 {[%emt 0:00:11]} 11. O-O {[%emt 0:10:37]} Bxc4 {[%emt 0:11:40]} 12. Re1+ {[%emt 0:02:35]} Ne7 {[%emt 0:00:42]} 13. Bxb7 {[%emt 0:08:19]} Rb8 {[%emt 0:00:07]} 14. Bf3 {[%emt 0:05:38]} O-O {[%emt 0:02:27]} 15. b3 {[%emt 0:00:57]} Be6 {[%emt 0:05:26]} 16. Bb2 {[%emt 0:06:11]} Rfe8 {[%emt 0:02:11]} 17. d5 {[%emt 0:04:06]} Bh3 {[%emt 0:00:10]} 18. Qd2 {[%emt 0:01:18]} Kh7 {[%emt 0:03:02]} 19. Rac1 {[%emt 0:02:38]} Ng8 {[%emt 0:03:33]} 20. Ne4 {[%emt 0:05:40]} f5 {[%emt 0:01:07]} 21. Nc3 {[%emt 0:00:10]} Rxe1+ {[%emt 0:01:08]} 22. Rxe1 {[%emt 0:00:07]} Re8 {[%emt 0:01:26]} 23. Rc1 {[%emt 0:00:51]} Nf6 {[%emt 0:08:31]} 24. Ne2 {[%emt 0:04:36]} Bg4 {[%emt 0:04:56]} 25. Bxf6 {[%emt 0:05:42]} Bxf3 {[%emt 0:03:25]} 26. Bxg7 {[%emt 0:00:34]} Qxg7 {[%emt 0:00:24]} 27. Nd4 {[%emt 0:03:17]} Bxd5 {[%emt 0:01:36]} 28. Nxf5 {[%emt 0:00:09]} gxf5 {[%emt 0:00:16]} 29. Qxd5 {[%emt 0:00:04]} Re5 {[%emt 0:00:52]} 30. Qc6 {[%emt 0:00:52]} Re7 {[%emt 0:00:08]} 31. Qf3 {[%emt 0:01:58]} Qe5 {[%emt 0:00:57]} 32. Rc4 {[%emt 0:00:25]} c5 {[%emt 0:00:15]} 33. Kg2 {[%emt 0:00:45]} Kg6 {[%emt 0:01:35]} 34. b4 {[%emt 0:01:12]} Qe6 {[%emt 0:00:45]} 35. Qd3 {[%emt 0:01:31]} cxb4 {[%emt 0:00:37]} 36. Rxb4 {[%emt 0:00:06]} Qxa2 {[%emt 0:00:39]} 37. Qxd6+ {[%emt 0:04:21]} Qe6 {[%emt 0:00:07]} 38. Qd3 {[%emt 0:01:00]} Rd7 {[%emt 0:02:02]} 39. Qc3 {[%emt 0:01:40]} Qd5+ {[%emt 0:00:53]} 40. Kh3 {[%emt 0:00:26]} Qd1 {[%emt 0:02:22]} 41. Qc6+ {[%emt 0:01:28]} Qd6 {[%emt 0:00:27]} 42. Qc4 {[%emt 0:01:42]} Qd5 {[%emt 0:01:09]} 43. Qc8 {[%emt 0:00:45]} Qe6 {[%emt 0:03:35]} 44. Rf4 {[%emt 0:03:28]} Re7 {[%emt 0:01:01]} 45. Qc2 {[%emt 0:00:32]} Qd5 {[%emt 0:00:49]} 46. Kh4 {[%emt 0:02:04]} Re4 {[%emt 0:00:30]} 47. Qc7 {[%emt 0:01:28]} Qd4 {[%emt 0:01:43]} 48. Rxe4 {[%emt 0:01:29]} fxe4 {[%emt 0:00:09]} 49. Kh3 {[%emt 0:01:09]} Qxf2 {[%emt 0:00:14]} 50. Qc6+ {[%emt 0:00:54]} Qf6 {[%emt 0:00:38]} 51. Qe8+ {[%emt 0:00:09]} Qf7 {[%emt 0:00:39]} 52. Qc6+ {[%emt 0:00:04]} Kg5 {[%emt 0:00:08]} 53. Qc1+ {[%emt 0:00:16]} Kg6 {[%emt 0:01:02]} 54. Qc6+ {[%emt 0:00:02]} Qf6 {[%emt 0:00:49]} 55. Qe8+ {[%emt 0:00:12]} Kg5 {[%emt 0:02:39]} 56. Qg8+ {[%emt 0:00:25]} Kf5 {[%emt 0:00:42]} 57. Qd5+ {[%emt 0:00:17]} Qe5 {[%emt 0:00:36]} 58. Qf7+ {[%emt 0:00:16]} Qf6 {[%emt 0:00:53]} 59. Qxa7 {[%emt 0:00:34]} Qe6 {[%emt 0:00:33]} 60. Kg2 {[%emt 0:00:40]} Kg6 {[%emt 0:00:37]} 1/2-1/2

[Event "2nd Cambridge Open 2024"]
[Site "Cambridge"]
[Date "2024.02.24"]
[Round "8.10"]
[White "Pert, Richard G"]
[Black "Rida, Ruqayyah"]
[Result "1-0"]
[ECO "D77"]
[WhiteElo "2411"]
[BlackElo "1743"]
[Annotator "TA"]
[PlyCount "53"]
[EventDate "2024.02.18"]
[EventType "swiss"]
[EventCountry "ENG"]
[SourceTitle "playchess.com"]
[Source "ChessBase"]
[SourceQuality "1"]
[TimeControl "5400+30"]

{[%evp 11,53,22,48,16,27,18,24,-5,25,29,32,35,36,21,33,35,74,13,67,58,111,123,239,222,249,233,247,258,543,530,531,526,521,524,517,505,750,535,977,782,1457,1417,1991,1591]} 1. d4 {[%emt 0:00:03]} Nf6 {[%emt 0:00:10]} 2. Nf3 {[%emt 0:00:28]} g6 {[%emt 0:00:14]} 3. g3 {[%emt 0:00:07]} Bg7 {[%emt 0:00:34]} 4. Bg2 {[%emt 0:00:07]} O-O {[%emt 0:00:32]} 5. O-O {[%emt 1:32:15]} d5 {[%emt 0:02:00]} 6. c4 {[%emt 0:00:00]} e6 {[%emt 0:02:07]} 7. Bg5 {[%emt 0:00:00]} h6 {[%emt 0:01:58]} 8. Bf4 {[%emt 0:00:00]} g5 {[%emt 0:06:27]} 9. Be3 {[%emt 0:00:00] White has an edge.} dxc4 {[%emt 0:06:10]} 10. Na3 {[%emt 0:00:00]} Nd5 {[%emt 0:07:50]} 11. Nxc4 {[%emt 0:00:00]} Nc6 {[%emt 0:06:51]} 12. Qb3 {[%emt 0:00:00]} f5 {[%emt 0:19:04]} 13. Rad1 {[%emt 0:00:00]} Qe8 {[%emt 0:14:15]} 14. Bc1 {[%emt 0:00:00]} (14. Nfe5 $16) 14... Nb6 {[%emt 0:06:25]} (14... Bd7 $11) 15. Rfe1 {[%emt 0:00:00][%cal Bf1e1,Be1e4,Be4h4][%mdl 32]} Kh7 {[%emt 0:07:11]} ({Black should play} 15... Bd7 $1 $14) 16. e4 {[%emt 0:00:00] White is more active.} fxe4 {[%emt 0:07:23]} (16... f4 $16) 17. Rxe4 $18 {[%emt 0:00:00]} Qf7 {[%emt 0:00:45] [#]} 18. Bxg5 $1 {[%emt 0:00:00][%mdl 512] And now Rh4 would win.} Nxc4 {[%emt 0:08:51]} (18... e5 19. dxe5) 19. Qxc4 {[%emt 0:00:00]} Qh5 {[%emt 0:00:35]} (19... e5 20. Qxf7 (20. Nxe5 Nxe5 21. Qxf7 Nxf7 $17) 20... Rxf7) 20. Rh4 {[%emt 0:00:00] White is clearly winning.} Qg6 {[%emt 0:00:26]} 21. Be3 {[%emt 0:00:00][%cal Of3e5] Ne5! would now be deadly.} Bd7 {[%emt 0:00:38]} 22. Ng5+ {[%emt 0:00:00]} Kg8 {[%emt 0:00:29]} 23. Be4 {[%emt 0:00:00]} Qe8 {[%emt 0:00:27]} 24. Nf3 {[%emt 0:03:04]} b5 {[%emt 0:00:33]} 25. Qc5 {[%emt 0:00:48]} Rb8 {[%emt 0:00:32]} 26. Bxh6 {[%emt 0:00:22]} e5 {[%emt 0:00:31]} 27. Bd5+ {[%emt 0:00:43] Weighted Error Value: White=0.32/Black=0.46.  Mistake:       	White=1     	Black=4      Inaccurate:     	White=1     	Black=5      OK:         	White=4     	Black=5      Best:        	---       	Black=1} 1-0

[Event "2nd Cambridge Open 2024"]
[Site "Cambridge"]
[Date "2024.02.24"]
[Round "8.11"]
[White "Wells, Peter K"]
[Black "Fava, Lorenzo"]
[Result "1/2-1/2"]
[ECO "D46"]
[WhiteElo "2341"]
[BlackElo "2084"]
[Annotator "TA"]
[PlyCount "87"]
[EventDate "2024.02.18"]
[EventType "swiss"]
[EventCountry "ENG"]
[SourceTitle "playchess.com"]
[Source "ChessBase"]
[SourceQuality "1"]
[TimeControl "5400+30"]

{[%evp 12,87,0,0,68,15,20,27,26,10,12,21,31,36,46,27,54,31,47,41,53,47,45,0,0,0,0,0,1,0,0,0,0,0,12,0,0,-5,-4,-4,-8,-16,-8,-13,-12,-74,-75,-74,-74,-87,-80,-95,-93,-92,-100,-111,-91,-91,-81,-99,-8,-8,-8,-8,-8,-55,0,0,0,0,0,0,0,0,0,0,0,0]} 1. d4 {[%emt 0:03:57]} Nf6 {[%emt 0:00:24]} 2. c4 {[%emt 0:01:38]} e6 {[%emt 0:00:19]} 3. Nc3 {[%emt 0:04:35]} d5 {[%emt 0:00:12]} 4. Nf3 {[%emt 0:00:37]} c6 {[%emt 0:00:13]} 5. e3 {[%emt 0:01:32]} Nbd7 {[%emt 0:00:12]} 6. Qc2 {[%emt 0:00:56]} Bd6 {[%emt 0:00:18]} 7. Bd3 {[%emt 0:04:00]} b6 {[%emt 0:03:05]} (7... dxc4 $11 8. Bxc4 e5) 8. O-O {[%emt 0:05:04]} (8. cxd5 $14 cxd5 9. Nb5 Bb4+ 10. Bd2 Bxd2+ 11. Nxd2 (11. Qxd2 O-O $14)) 8... Bb7 $11 {[%emt 0:00:47]} 9. e4 {[%emt 0:01:21]} dxe4 {[%emt 0:00:51] White has an edge.} 10. Nxe4 {[%emt 0:00:36]} Nxe4 {[%emt 0:01:14]} 11. Bxe4 {[%emt 0:00:05][%cal Oa1b1]} Nf6 {[%emt 0:00:17]} 12. Bg5 {[%emt 0:11:49]} Be7 {[%emt 0:05:43]} 13. Bxf6 {[%emt 0:06:57]} Bxf6 {[%emt 0:03:50]} 14. c5 {[%emt 0:05:22]} (14. Bxh7 g6 15. Bxg6 fxg6 16. Qxg6+ Kd7 $16) 14... h6 {[%emt 0:04:03]} 15. Rfd1 {[%emt 0:11:32]} O-O {[%emt 0:01:36]} 16. b4 {[%emt 0:00:52]} Qc7 {[%emt 0:04:44]} 17. Rac1 {[%emt 0:12:32]} a5 {[%emt 0:03:56]} 18. a3 {[%emt 0:05:33]} axb4 {[%emt 0:03:08]} 19. axb4 {[%emt 0:00:14][%cal Of3e5]} Rfd8 {[%emt 0:03:44]} 20. g3 {[%emt 0:02:07][%cal Of3e5]} bxc5 {[%emt 0:02:42]} 21. Qxc5 {[%emt 0:02:05][%cal Ob4b5]} Be7 {[%emt 0:00:33]} 22. Qc3 {[%emt 0:08:52][%cal Of3e5]} Qb6 {[%emt 0:00:39]} 23. Rb1 {[%emt 0:00:35]} (23. Ne5 {keeps more tension.} Bf6 24. Rb1 Ra2 25. Qc5) 23... Ra4 {[%emt 0:01:48][%cal Ra4b4]} 24. Ne5 {[%emt 0:03:31] aiming for Qc2.} Rxb4 {[%emt 0:01:20] With the idea ...c5.} 25. Rxb4 {[%emt 0:00:35]} (25. Nxc6 {simplifies} Bxc6 26. Rxb4 Bxb4 27. Qxc6 Qxc6 28. Bxc6 g6 29. d5) 25... Bxb4 {[%emt 0:25:46]} (25... Qxb4 {simplifies} 26. Qxb4 Bxb4 27. Nxc6 Rc8) 26. Qf3 {[%emt 0:00:43]} (26. Qc2 {simplifies} Qc7 27. Nxc6 Bxc6 28. Qxc6 Qxc6 29. Bxc6 g6 30. d5) 26... f6 {[%emt 0:01:57]} 27. Qb3 {[%emt 0:01:18]} c5 {[%emt 0:07:07]} 28. dxc5 {[%emt 0:01:58]} (28. Nc4 $11 {keeps the balance.} Qa6 29. Bxb7 Qxb7 30. Nb2) 28... Rxd1+ $17 {[%emt 0:01:00]} 29. Qxd1 {[%emt 0:00:08]} Bxc5 {[%emt 0:00:30]} 30. Bxb7 {[%emt 0:03:18]} Qxb7 $11 {[%emt 0:02:43][%mdl 4096] Endgame. KQB-KQN} (30... Bxf2+ 31. Kf1 Bc5 (31... fxe5 32. Qd7 $11) (31... Qxb7 32. Qd8+ Kh7 33. Qd3+ Kg8 34. Qd8+ Kh7 35. Qd3+ Kg8 36. Qd8+ $11) 32. Be4 fxe5 33. h4 $11) 31. Qd8+ {[%emt 0:00:32]} Kh7 {[%emt 0:00:57]} 32. Qd3+ {[%emt 0:00:38] [#]} f5 $1 {[%emt 0:00:10]} 33. Qe2 {[%emt 0:00:37] Wards off Qb2} Qd5 {[%emt 0:01:14]} 34. h4 {[%emt 0:00:40][%cal Bh2h4,Bh4h5][%mdl 32]} Bd6 {[%emt 0:00:45]} 35. Nf3 {[%emt 0:00:29]} e5 {[%emt 0:00:23]} (35... g6 $17) 36. h5 $1 {[%emt 0:00:21]} e4 {[%emt 0:02:33]} 37. Nh4 {[%emt 0:00:03]} Be7 {[%emt 0:03:58]} 38. Ng6 {[%emt 0:00:27] Inhibits Bxh4.} Bg5 {[%emt 0:00:26]} ({Better is} 38... Bc5 $1 $15) 39. Kh2 {[%emt 0:01:07] The position is equal.} Qd3 {[%emt 0:00:35]} 40. Qa2 {[%emt 0:00:16]} Qf3 {[%emt 0:04:30]} 41. Nf8+ {[%emt 0:00:05]} Kh8 {[%emt 0:00:04]} 42. Ng6+ {[%emt 0:00:07]} Kh7 {[%emt 0:00:06]} 43. Nf8+ {[%emt 0:00:34]} Kh8 {[%emt 0:00:02]} 44. Ng6+ {[%emt 0:00:45] Weighted Error Value: White=0.11 (very precise) /Black=0.13 (very precise) .  Mistake:       	White=2     	Black=2      Inaccurate:     	White=1     	Black=1      OK:         	White=16    	Black=14     Best:        	White=1     	Black=2      Strong:       	White=1     	Black=1} 1/2-1/2

[Event "2nd Cambridge Open 2024"]
[Site "Cambridge"]
[Date "2024.02.24"]
[Round "8.12"]
[White "Ghasi, Ameet K"]
[Black "Jermy, Jaden"]
[Result "1-0"]
[ECO "C00"]
[WhiteElo "2509"]
[BlackElo "1968"]
[Annotator "TA"]
[PlyCount "117"]
[EventDate "2024.02.18"]
[EventType "swiss"]
[EventCountry "ENG"]
[SourceTitle "playchess.com"]
[Source "ChessBase"]
[SourceQuality "1"]
[TimeControl "5400+30"]

{[%evp 22,117,-29,-32,0,0,0,0,34,46,68,61,171,186,376,368,283,197,233,239,264,239,237,252,239,228,213,243,221,201,223,174,159,175,196,199,215,175,391,342,399,395,381,406,405,379,364,219,248,242,240,229,233,229,293,293,312,309,318,306,320,302,403,371,409,424,397,391,383,360,353,320,446,413,447,427,443,303,283,272,619,600,1092,1080,29988,800,765,765,1025,1018,29970,29971,29972,29973,6954,12832,29975,29976]} 1. Nf3 {[%emt 0:00:29]} Nf6 {[%emt 0:00:15]} 2. g3 {[%emt 0:00:06]} d5 {[%emt 0:00:16]} 3. Bg2 {[%emt 0:00:07]} e6 {[%emt 0:00:29]} 4. O-O {[%emt 0:00:08]} Be7 {[%emt 0:00:01]} 5. d3 {[%emt 0:00:23]} O-O {[%emt 0:02:52]} 6. Nbd2 {[%emt 0:00:11]} c5 {[%emt 0:00:55]} 7. e4 {[%emt 0:00:08]} Nc6 {[%emt 0:00:49]} 8. Re1 {[%emt 0:00:05]} b5 {[%emt 0:02:44]} 9. e5 {[%emt 0:00:12]} Nd7 {[%emt 0:00:08]} 10. Nf1 {[%emt 0:00:12]} Qc7 {[%emt 0:03:52]} 11. Bf4 {[%emt 0:00:10]} Bb7 {[%emt 0:01:08]} 12. h4 {[%emt 0:01:04]} Nd4 {[%emt 0:01:51]} 13. Nxd4 {[%emt 0:05:28]} cxd4 {[%emt 0:00:03]} 14. Qg4 {[%emt 0:03:58]} Rfc8 {[%emt 0:02:40] The position is equal.} 15. Re2 {[%emt 0:01:44]} Bf8 {[%emt 0:01:54]} 16. Nh2 {[%emt 0:00:22][%cal Bf1h2,Bh2f3,Bf3d4][%mdl 32] White is more active.} g6 {[%emt 0:02:10]} (16... Kh8 $14) 17. h5 $18 {[%emt 0:05:59] Black must now prevent hxg6.} Bg7 $2 {[%emt 0:01:33]} (17... Qc5 18. Nf3 Re8 19. hxg6 fxg6) 18. hxg6 {[%emt 0:00:08]} hxg6 {[%emt 0:00:06]} 19. Nf3 {[%emt 0:00:21]} Qc5 {[%emt 0:04:00]} 20. Rae1 {[%emt 0:01:28]} Rc6 {[%emt 0:04:27]} 21. Bg5 {[%emt 0:02:45]} Ra6 {[%emt 0:01:07]} 22. Nxd4 {[%emt 0:00:34]} (22. Qxd4 Qxd4 23. Nxd4 Rxa2 $11) 22... Re8 {[%emt 0:00:47] [#]} 23. a3 {[%emt 0:00:48]} Ra4 {[%emt 0:05:12]} 24. c3 {[%emt 0:00:06][%cal Bc2c3,Bc3b4,Bb4b5][%mdl 32] Strongly threatening Re3.} a5 {[%emt 0:01:56]} 25. Bd2 {[%emt 0:02:05]} b4 {[%emt 0:00:25]} 26. axb4 {[%emt 0:03:07]} axb4 {[%emt 0:00:10]} 27. cxb4 {[%emt 0:00:21]} Qb6 {[%emt 0:05:36]} 28. Qf4 {[%emt 0:08:44]} Bf8 {[%emt 0:07:07]} 29. b3 {[%emt 0:01:14]} Ra2 {[%emt 0:01:08]} (29... Ra3 30. Rc1 Bg7) 30. Nf3 {[%emt 0:00:14]} Be7 {[%emt 0:07:58]} 31. Be3 {[%emt 0:23:52]} Qa6 {[%emt 0:00:19] [#]} 32. b5 $1 {[%emt 0:01:21]} Qa3 {[%emt 0:02:13]} (32... Qa5 33. b4) 33. Rxa2 {[%emt 0:05:22]} Qxa2 {[%emt 0:00:02]} 34. Qa4 {[%emt 0:00:44]} Ra8 {[%emt 0:01:42]} 35. Qxa2 {[%emt 0:02:03]} Rxa2 {[%emt 0:00:03]} 36. Rc1 {[%emt 0:04:04]} Bd8 {[%emt 0:00:01] Wards off Rc7} 37. Bf1 {[%emt 0:00:21]} Ra5 {[%emt 0:01:10]} 38. d4 {[%emt 0:01:22][%cal Bd3d4,Bd4c5,Bc5c6][%mdl 32]} Ra3 {[%emt 0:00:38]} 39. Rb1 {[%emt 0:00:11]} Kf8 {[%emt 0:06:15]} 40. Ne1 {[%emt 0:00:34]} Ke8 {[%emt 0:02:54]} 41. Nd3 {[%emt 0:00:15]} Bc7 {[%emt 0:02:14]} 42. Nc5 {[%emt 0:06:08]} Nxc5 {[%emt 0:06:09]} 43. dxc5 {[%emt 0:00:03]} Bxe5 {[%emt 0:00:02]} 44. c6 {[%emt 0:02:20]} Ba8 {[%emt 0:00:20]} 45. f4 {[%emt 0:06:13]} Bd6 {[%emt 0:05:48]} 46. Bd3 {[%emt 0:00:03]} g5 {[%emt 0:01:16]} 47. Kf2 {[%emt 0:03:33]} gxf4 {[%emt 0:01:07]} 48. gxf4 {[%emt 0:00:02]} (48. Bxf4 Ke7 49. Bxd6+ Kxd6 $18) 48... Kd8 {[%emt 0:01:19]} 49. Kf3 {[%emt 0:01:37] Bb6+ is the strong threat.} Kc7 {[%emt 0:05:18]} 50. Bd4 {[%emt 0:00:15]} Be7 $2 {[%emt 0:02:36]} (50... Bxc6 51. bxc6 Kxc6) 51. b6+ {[%emt 0:09:04]} Kxc6 {[%emt 0:00:50]} 52. Rc1+ {[%emt 0:00:08]} Kd7 {[%emt 0:10:35]} 53. Rc7+ {[%emt 0:00:07]} (53. Bb5+ $142 Bc6 54. Bxc6+ (54. Rxc6 Rxb3+ 55. Ke2 Rxb5 $11) 54... Kd8 55. Rc3 Bd6 56. b7 Kc7 57. Bxd5+ Kd7 58. Bc6+ Kc7 59. Be4+ Kd7 60. Be5 (60. Bc5 Ra6 61. Rd3 Kc7 62. Bxd6+ Rxd6 63. Rc3+ Rc6 64. Bxc6 f6 65. Be4+ Kb8)) 53... Kd8 {[%emt 0:00:00] [#]} 54. Rxe7 $1 {[%emt 0:00:28][%mdl 512]} Rxb3 {[%emt 0:00:00]} (54... Kxe7 55. Bc5+) 55. Ra7 {[%emt 0:00:21]} ({And not} 55. Rxf7 Rxd3+ 56. Be3 (56. Kg4 Rxd4 57. b7 Bxb7 $15) 56... d4+ 57. b7 (57. Kg4 $2 dxe3 58. Rf8+ Kd7 $19) 57... Rxe3+ $11 (57... Bxb7+ 58. Rxb7 Rxe3+ 59. Kf2 $11)) 55... Rxd3+ {[%emt 0:00:00] [#]} 56. Ke2 $1 {[%emt 0:00:16]} Rb3 {[%emt 0:00:00]} 57. Rxa8+ {[%emt 0:00:04]} Kd7 {[%emt 0:00:00]} 58. Ra7+ {[%emt 0:00:08]} Kd6 {[%emt 0:00:00]} 59. Rxf7 {[%emt 0:00:13] White took control after the opening.   Weighted Error Value: White=0.17 (very precise) /Black=0.73.  Mistake:       	---       	Black=4      Inaccurate:     	White=3     	Black=4      OK:         	White=21    	Black=10     Best:        	White=3     	Black=1} 1-0